bitfinex-derivatives/quotes_SOLF0:USTF0_20251109
["timestamp","ask_amount","ask_price","bid_price","bid_amount"]
[1762663586509,3.07189074,156.95,156.91,0.04020337]
[1762663586915,3.07189074,156.95,156.91,3.14020337]
[1762663591820,3.07189074,156.95,156.92,3.01]
[1762663594616,3.07189074,156.95,156.91,0.04020337]
[1762663595322,3.07,156.93,156.91,0.04020337]
[1762663595821,3.07,156.92,156.91,0.04020337]
[1762663607240,3.24189074,156.95,156.91,3.17020337]
[1762663607836,3.24189074,156.95,156.91,0.04020337]
[1762663607837,3.2,156.94,156.91,0.04020337]
[1762663610145,8.9368,156.94,156.91,0.04020337]
[1762663610436,3.2,156.93,156.91,0.04020337]
[1762663617435,1.7578706,156.95,156.82,9.54936406]
[1762663617436,3.2,156.91,156.82,9.54936406]
[1762663617642,3.2,156.91,156.83,3.13]
[1762663618044,3.2,156.89,156.83,3.13]
[1762663618540,3.2,156.87,156.84,0.04184307]
[1762663620837,3.2,156.87,156.84,3.17184307]
[1762663622352,3.2,156.87,156.85,3.24]
[1762663623047,3.2,156.87,156.84,5.78204307]
[1762663623048,3.2,156.87,156.84,0.04184307]
[1762663624850,3.2,156.87,156.84,3.28184307]
[1762663625652,0.04889308,156.88,156.85,3.24]
[1762663625854,3.15889308,156.88,156.85,3.24]
[1762663626152,3.15889308,156.88,156.86,3.24]
[1762663626548,0.04889308,156.88,156.86,3.24]
[1762663627556,0.04889308,156.88,156.87,3.24]
[1762663628854,3.11,156.93,156.89,3.24]
[1762663629552,3.11,156.93,156.89,8.9782]
[1762663630049,3.15257438,156.93,156.89,9.02462348]
[1762663631051,3.15257438,156.93,156.89,0.04642348]
[1762663632356,3.11,156.92,156.89,0.04642348]
[1762663634054,3.11,156.92,156.89,3.28642348]
[1762663634353,3.11,156.92,156.89,0.04642348]
[1762663636059,8.8475,156.92,156.89,0.04642348]
[1762663636259,3.11,156.91,156.89,0.04642348]
[1762663636448,3.11,156.9,156.89,0.04642348]
[1762663636754,3.11,156.9,156.83,5.7404]
[1762663637655,3.11,156.87,156.85,0.04604658]
[1762663640756,0.04673622,156.88,156.85,3.28604658]
[1762663641251,3.15673622,156.88,156.85,3.28604658]
[1762663641967,3.15673622,156.88,156.85,9.02584658]
[1762663643264,3.15673622,156.88,156.85,5.78584658]
[1762663644559,3.15673622,156.88,156.85,0.04604658]
[1762663645654,3.15673622,156.88,156.85,3.28604658]
[1762663645854,3.15673622,156.88,156.85,0.04604658]
[1762663646553,3.15673622,156.88,156.85,3.28604658]
[1762663647248,3.15673622,156.88,156.85,0.04604658]
[1762663648758,3.11,156.87,156.85,0.04604658]
[1762663649154,3.11,156.85,156.78,3.24]
[1762663649659,1.71597986,156.84,156.78,3.24]
[1762663649857,3.11,156.83,156.78,3.24]
[1762663650366,3.11,156.81,156.79,0.0446186]
[1762663651252,3.15453296,156.82,156.79,3.2846186]
[1762663651961,3.15453296,156.82,156.79,9.0266186]
[1762663654661,0.04453296,156.82,156.81,3.06]
[1762663657267,2.98,156.88,156.84,3.06]
[1762663658260,3.02265474,156.88,156.84,3.10662444]
[1762663658964,3.02265474,156.88,156.84,8.84682444]
[1762663659671,3.02265474,156.88,156.84,5.78682444]
[1762663660173,3.02265474,156.88,156.84,0.04662444]
[1762663660464,2.98,156.84,156.74,3.06]
[1762663660668,2.98,156.81,156.74,3.06]
[1762663661359,0.04407412,156.79,156.76,0.0428462]
[1762663661557,3.02407412,156.79,156.76,0.0428462]
[1762663663073,2.98,156.77,156.76,0.0428462]
[1762663669673,3.1,156.78,156.76,0.0428462]
[1762663671079,0.04407412,156.79,156.76,3.1628462]
[1762663671782,3.14407412,156.79,156.76,3.1628462]
[1762663672580,3.14407412,156.79,156.76,0.0428462]
[1762663673985,8.88637412,156.79,156.76,0.0428462]
[1762663674177,3.1,156.78,156.76,0.0428462]
[1762663675184,3.1,156.77,156.69,3.12]
[1762663675574,3.1,156.77,156.69,8.8657]
[1762663676079,3.1,156.76,156.69,8.8657]
[1762663676381,3.14493476,156.74,156.71,3.16740436]
[1762663677377,3.14493476,156.74,156.71,0.04740436]
[1762663678783,3.1,156.73,156.71,0.04740436]
[1762663687984,8.8447,156.73,156.71,0.04740436]
[1762663688289,3.0,156.72,156.71,0.04740436]
[1762663699291,3.0,156.68,156.62,3.14]
[1762663700182,3.04229516,156.67,156.63,0.04094828]
[1762663700382,3.04229516,156.67,156.64,3.14]
[1762663705198,0.04229516,156.67,156.64,3.14]
[1762663707494,0.04229516,156.67,156.66,3.14]
[1762663709796,3.0,156.74,156.69,3.14]
[1762663710798,0.04855788,156.73,156.71,3.14]
[1762663712303,0.04855788,156.73,156.71,8.885]
[1762663712509,0.04855788,156.73,156.72,3.21]
[1762663732531,3.21,156.8,156.75,3.1]
[1762663733332,0.04574267,156.79,156.76,8.88565505]
[1762663733529,3.25250578,156.79,156.76,8.88870287]
[1762663733833,3.25250578,156.79,156.77,3.1]
[1762663733834,0.04250578,156.79,156.77,3.1]
[1762663734934,0.04250578,156.79,156.77,8.8427]
[1762663735230,0.04250578,156.79,156.78,3.1]
[1762663740138,3.25250578,156.79,156.77,5.7428]
[1762663740340,0.04250578,156.79,156.77,8.8428]
[1762663741929,0.04250578,156.79,156.78,2.97]
[1762663742639,0.04250578,156.79,156.77,8.7128]
[1762663743042,0.04250578,156.79,156.78,2.97]
[1762663744342,3.25250578,156.79,156.76,3.01570287]
[1762663744529,3.25250578,156.79,156.76,0.04570287]
[1762663745230,0.04250578,156.79,156.76,3.01570287]
[1762663745629,0.04250578,156.79,156.78,2.97]
[1762663749545,3.25250578,156.79,156.77,5.7428]
[1762663750242,3.25250578,156.79,156.76,0.04570287]
[1762663751338,3.25250578,156.79,156.76,5.78880287]
[1762663752045,0.04250578,156.79,156.78,2.97]
[1762663752545,0.04250578,156.79,156.77,5.7428]
[1762663752747,0.04250578,156.79,156.77,8.7128]
[1762663753143,3.25250578,156.79,156.76,0.04570287]
[1762663754041,3.25250578,156.79,156.76,3.01570287]
[1762663755343,3.25250578,156.79,156.77,8.7128]
[1762663768458,3.25250578,156.79,156.77,2.97]
[1762663778062,3.25250578,156.79,156.77,8.7128]
[1762663778460,3.25250578,156.79,156.78,3.09]
[1762663779763,3.25250578,156.79,156.77,5.7428]
[1762663779963,3.25250578,156.79,156.77,8.8328]
[1762663783371,0.04250578,156.79,156.78,3.09]
[1762663787264,4.65832591,156.85,156.8,5.7417]
[1762663787466,2.94,156.84,156.81,3.01]
[1762663788375,2.98881857,156.84,156.81,3.0523306]
[1762663789073,2.98881857,156.84,156.82,3.01]
[1762663791572,2.98881857,156.84,156.81,3.0523306]
[1762663793170,2.94,156.83,156.81,0.0423306]
[1762663793978,2.94,156.82,156.81,0.0423306]
[1762663796377,2.98881857,156.84,156.81,3.0523306]
[1762663799677,2.98881857,156.84,156.81,0.0423306]
[1762663799874,2.98881857,156.84,156.81,3.0523306]
[1762663801987,2.98881857,156.84,156.81,8.7936306]
[1762663804686,0.04881857,156.84,156.82,8.9109]
[1762663804988,0.04881857,156.84,156.83,3.17]
[1762663807887,8.93387765,156.88,156.85,3.17]
[1762663808484,5.96387765,156.88,156.86,3.17]
[1762663808988,5.96387765,156.88,156.87,3.17]
[1762663809193,8.93387765,156.88,156.86,5.7395]
[1762663809384,5.96387765,156.88,156.86,8.9095]
[1762663809582,5.96387765,156.88,156.87,3.17]
[1762663813000,7.765e-05,156.88,156.87,3.17]
[1762663813200,7.2226174,156.9,156.89,3.17]
[1762663815797,1.74e-05,156.9,156.89,3.17]
[1762663816099,2.97,156.98,156.93,3.17]
[1762663816896,3.01810651,156.97,156.94,3.21815904]
[1762663821198,0.04810651,156.97,156.94,3.21815904]
[1762663822002,3.01810651,156.97,156.94,3.21815904]
[1762663822203,3.01810651,156.97,156.94,0.04815904]
[1762663822803,3.01810651,156.97,156.94,3.21815904]
[1762663823500,3.01810651,156.97,156.94,0.04815904]
[1762663824303,2.97,156.96,156.89,3.17]
[1762663825299,0.04555759,156.94,156.91,0.04416611]
[1762663825615,2.97,156.93,156.91,0.04416611]
[1762663827309,8.7072,156.93,156.91,0.04416611]
[1762663827512,2.97,156.92,156.83,3.17]
[1762663828506,0.04190435,156.89,156.86,0.04757918]
[1762663828710,2.97,156.88,156.83,3.17]
[1762663828910,2.97,156.88,156.86,3.21031643]
[1762663829212,2.97,156.88,156.86,3.17]
[1762663830015,3.01162204,156.89,156.86,8.9095]
[1762663831305,3.01162204,156.89,156.87,3.17]
[1762663832908,0.04162204,156.89,156.88,3.17]
[1762663833108,2.94,156.93,156.88,3.17]
[1762663834011,0.04485299,156.92,156.89,8.95120029]
[1762663834514,2.98485299,156.92,156.89,8.95120029]
[1762663835015,2.98485299,156.92,156.89,0.04270029]
[1762663836515,2.94,156.9,156.89,0.04270029]
[1762663846518,3.08485299,156.92,156.89,3.02270029]
[1762663847211,3.08485299,156.92,156.89,5.78110029]
[1762663847416,3.08485299,156.92,156.9,2.98]
[1762663848017,3.08485299,156.92,156.9,8.718]
[1762663848228,3.08485299,156.92,156.9,5.738]
[1762663848425,3.08485299,156.92,156.9,8.718]
[1762663849218,0.04485299,156.92,156.9,8.718]
[1762663849412,0.04485299,156.92,156.91,2.98]
[1762663855521,3.08485299,156.92,156.89,8.56215361]
[1762663855716,3.08485299,156.92,156.89,2.72650655]
[1762663855922,3.08485299,156.92,156.89,5.70650655]
[1762663856122,3.08485299,156.92,156.9,2.98]
[1762663856527,0.04485299,156.92,156.91,2.98]
[1762663862437,0.04485299,156.92,156.91,4.6950153]
[1762663863939,3.02,157.0,156.94,2.96]
[1762663864131,3.02,157.0,156.95,4.6750153]
[1762663864532,3.02,156.98,156.95,4.6750153]
[1762663864838,3.06618201,156.98,156.95,4.71916971]
[1762663866341,3.02,156.97,156.95,4.71916971]
[1762663869844,0.04618201,156.98,156.96,2.96]
[1762663870939,3.06618201,156.98,156.96,2.96]
[1762663871140,0.04618201,156.98,156.96,8.6959]
[1762663871436,0.04618201,156.98,156.96,4.6750153]
[1762663872143,0.04618201,156.98,156.97,2.96]
[1762663875946,3.06618201,156.98,156.96,7.4509153]
[1762663876447,3.06618201,156.98,156.96,10.4109153]
[1762663876943,0.04618201,156.98,156.96,10.4109153]
[1762663877340,0.04618201,156.98,156.97,2.96]
[1762663881150,3.06618201,156.98,156.96,10.4109153]
[1762663881749,0.04618201,156.98,156.96,10.4109153]
[1762663882354,0.04618201,156.98,156.97,2.96]
[1762663893060,0.04618201,156.98,156.97,4.6750153]
[1762663895161,3.0,157.03,157.0,2.93]
[1762663895358,3.0,157.03,157.01,2.93]
[1762663897160,0.0467787,157.04,157.01,2.93]
[1762663897654,0.0467787,157.04,157.0,7.49454915]
[1762663897655,0.0467787,157.04,157.02,4.6450153]
[1762663898460,3.0467787,157.04,157.02,4.6450153]
[1762663900168,3.0,157.03,157.0,0.04513385]
[1762663900369,3.0,157.03,156.96,1.7150153]
[1762663900570,3.0,157.03,156.95,2.93]
[1762663900571,3.0,157.02,156.95,2.93]
[1762663900771,3.0,156.98,156.95,8.6662]
[1762663901164,3.0,156.98,156.96,2.93]
[1762663901472,3.04084705,156.98,156.96,2.93]
[1762663901774,0.04084705,156.98,156.97,2.93]
[1762663905777,0.04084705,156.98,156.95,3.24627451]
[1762663905778,2.97084705,156.98,156.95,3.24627451]
[1762663905975,2.93,156.97,156.95,0.04627451]
[1762663906972,8.6656,156.97,156.95,0.04627451]
[1762663907171,2.93,156.96,156.95,0.04627451]
[1762663911674,2.93,156.97,156.95,0.04627451]
[1762663912074,2.93,156.97,156.95,3.24627451]
[1762663912666,0.04084705,156.98,156.95,3.24627451]
[1762663913079,2.97084705,156.98,156.95,3.24627451]
[1762663914079,2.97084705,156.98,156.96,3.2]
[1762663915980,0.04084705,156.98,156.96,3.2]
[1762663919589,0.04084705,156.98,156.96,8.9357]
[1762663919888,0.04084705,156.98,156.97,3.2]
[1762663921781,3.05,157.04,156.99,5.7348]
[1762663922086,3.05,157.04,157.0,3.12]
[1762663922588,3.05,157.03,157.0,3.12]
[1762663922990,3.09826052,157.03,157.0,3.16168244]
[1762663923184,0.04826052,157.03,157.01,3.12]
[1762663923887,3.09826052,157.03,157.01,3.12]
[1762663924788,0.04826052,157.03,157.01,3.12]
[1762663925390,0.04826052,157.03,157.02,3.12]
[1762663927390,0.04826052,157.03,157.01,8.854]
[1762663927688,0.04826052,157.03,157.02,3.12]
[1762663928392,3.09826052,157.03,157.0,3.16168244]
[1762663929995,0.04826052,157.03,157.0,3.16168244]
[1762663931089,0.04826052,157.03,157.02,3.12]
[1762663941609,8.7815,157.09,157.05,3.12]
[1762663941809,3.05,157.09,157.05,3.12]
[1762663942811,0.04580891,157.09,157.06,3.12]
[1762663943912,3.09580891,157.09,157.05,0.04496067]
[1762663944604,3.05,157.06,157.05,0.04496067]
[1762663949222,3.05,157.06,157.01,3.12]
[1762663949412,3.05,157.08,157.03,3.12]
[1762663949820,3.05,157.08,156.99,3.12]
[1762663950423,3.09198911,157.05,157.02,3.16604649]
[1762663950724,3.09874218,157.05,157.02,3.1677916]
[1762663952516,3.09874218,157.05,157.02,0.0477916]
[1762663953325,3.16,157.04,157.02,0.0477916]
[1762663954122,3.16,157.03,157.02,0.0477916]
[1762663970935,2.94,157.01,156.97,2.94]
[1762663972137,2.9875898,157.01,156.97,2.98649806]
[1762663972941,2.9875898,157.01,156.98,5.7351]
[1762663973140,2.9875898,157.01,156.98,8.6751]
[1762663975146,2.9875898,157.01,156.98,2.94]
[1762663978143,2.9875898,157.01,156.98,8.6751]
[1762663982847,2.9875898,157.01,156.99,2.97]
[1762663984451,3.12,156.99,156.97,3.01649806]
[1762663985243,5.7346,157.0,156.97,3.01649806]
[1762663985440,8.8546,157.0,156.97,3.01649806]
[1762663988257,3.12,156.98,156.97,0.04649806]
[1762663994052,8.9017898,157.01,156.98,2.97]
[1762663995461,3.12,157.0,156.98,2.97]
[1762663995858,3.12,157.0,156.97,4.73016676]
[1762663998056,3.12,156.99,156.97,0.04649806]
[1762663999968,3.12,156.98,156.97,0.04649806]
[1762664001471,3.12,156.99,156.97,3.01649806]
[1762664007772,3.12,156.99,156.97,4.73016676]
[1762664010373,3.1675898,157.01,156.98,2.97]
[1762664011974,0.0475898,157.01,156.99,3.15]
[1762664012270,3.2275898,157.01,156.99,3.15]
[1762664015371,3.2275898,157.01,156.97,0.04649806]
[1762664016268,3.18,156.99,156.97,0.04649806]
[1762664018478,8.9149,156.99,156.97,0.04649806]
[1762664018776,3.18,156.98,156.97,0.04649806]
[1762664023976,3.18,156.98,156.92,8.8872]
[1762664023977,3.18,156.96,156.92,3.15]
[1762664024284,3.18,156.96,156.9,8.8879]
[1762664024576,3.18,156.96,156.91,3.15]
[1762664024977,3.06,156.95,156.91,3.15]
[1762664025180,3.10524381,156.95,156.92,0.04586129]
[1762664025368,3.10524381,156.95,156.92,3.28586129]
[1762664028785,3.06,156.94,156.92,0.04586129]
[1762664030487,3.06,156.93,156.92,0.04586129]
[1762664030677,5.7367,156.94,156.92,3.28586129]
[1762664031078,8.7967,156.94,156.92,3.28586129]
[1762664031376,3.06,156.93,156.92,0.04586129]
[1762664031883,8.7967,156.94,156.92,3.28586129]
[1762664034688,0.04524381,156.95,156.92,3.28586129]
[1762664035180,3.10524381,156.95,156.92,3.28586129]
[1762664035888,8.84164381,156.95,156.92,3.28586129]
[1762664036092,3.10524381,156.95,156.92,3.28586129]
[1762664039596,3.06,156.94,156.92,3.28586129]
[1762664040690,3.06,156.94,156.92,0.04586129]
[1762664040888,3.06,156.93,156.88,3.24]
[1762664041789,3.06,156.93,156.89,3.28640207]
[1762664041993,0.04527795,156.93,156.89,3.28640207]
[1762664042288,3.22527795,156.93,156.89,3.28640207]
[1762664046593,0.04527795,156.93,156.89,3.28640207]
[1762664047993,0.04527795,156.93,156.91,3.24]
[1762664048694,0.04527795,156.93,156.92,3.24]
[1762664049807,3.18,156.99,156.95,3.24]
[1762664050710,3.22756773,156.99,156.95,3.28202123]
[1762664052210,3.22756773,156.99,156.96,3.24]
[1762664053201,0.04756773,156.99,156.96,8.9758]
[1762664053406,0.04756773,156.99,156.97,3.24]
[1762664055011,0.04756773,156.99,156.97,8.9754]
[1762664055312,0.04756773,156.99,156.98,3.24]
[1762664064512,3.22756773,156.99,156.96,3.24]
[1762664065709,0.04756773,156.99,156.96,3.24]
[1762664066602,0.04756773,156.99,156.96,8.9758]
[1762664066910,0.04756773,156.99,156.97,3.24]
[1762664068215,3.22756773,156.99,156.97,3.24]
[1762664068519,3.22756773,156.99,156.95,3.28202123]
[1762664070017,3.22756773,156.99,156.96,3.24]
[1762664070417,3.22756773,156.99,156.95,5.77822123]
[1762664070618,3.22756773,156.99,156.95,9.01822123]
[1762664071015,3.22756773,156.99,156.96,3.24]
[1762664071919,3.22756773,156.99,156.96,8.9758]
[1762664072820,0.04756773,156.99,156.97,3.23]
[1762664076121,0.04756773,156.99,156.97,8.9655]
[1762664076324,0.04756773,156.99,156.98,3.23]
[1762664077007,0.04756773,156.99,156.97,5.7355]
[1762664077222,2.97756773,156.99,156.97,8.9655]
[1762664077815,0.04756773,156.99,156.98,3.23]
[1762664095145,0.04756773,156.99,156.98,11.10070029]
[1762664096338,3.06,157.05,157.01,2.93]
[1762664097245,3.10413911,157.05,157.01,2.9771392]
[1762664097431,3.10413911,157.05,157.02,2.93]
[1762664098943,3.10413911,157.05,157.02,8.6637]
[1762664100634,3.10413911,157.05,157.01,2.9771392]
[1762664100635,3.06,157.04,157.01,2.9771392]
[1762664102246,3.27413911,157.05,157.02,3.07]
[1762664110549,3.27413911,157.05,157.03,3.07]
[1762664111947,0.04413911,157.05,157.03,5.7332]
[1762664112151,0.04413911,157.05,157.04,3.07]
[1762664121459,3.27413911,157.05,157.03,5.7332]
[1762664121653,0.04413911,157.05,157.04,3.07]
[1762664129763,8.9605,157.11,157.04,10.94070029]
[1762664129962,8.9605,157.11,157.07,3.07]
[1762664130458,3.23,157.11,157.08,3.07]
[1762664130866,3.27837067,157.11,157.08,3.11109473]
[1762664131559,0.04837067,157.11,157.1,3.14]
[1762664131959,3.11837067,157.11,157.09,5.731]
[1762664132165,3.11837067,157.11,157.09,8.871]
[1762664132463,0.04837067,157.11,157.1,3.14]
[1762664133064,0.04837067,157.11,157.08,3.18109473]
[1762664133065,3.11837067,157.11,157.08,3.18109473]
[1762664133559,3.11837067,157.11,157.08,0.04109473]
[1762664135067,3.07,157.09,157.08,0.04109473]
[1762664174108,3.21,157.05,157.02,2.96]
[1762664174311,3.21,157.1,157.02,2.96]
[1762664175208,3.21,157.07,157.04,3.00133603]
[1762664175711,0.04879301,157.08,157.04,3.00133603]
[1762664175904,3.25879301,157.08,157.04,3.00133603]
[1762664177110,3.25879301,157.08,157.05,2.96]
[1762664177608,0.04879301,157.08,157.05,2.96]
[1762664179014,0.04879301,157.08,157.07,2.96]
[1762664184219,8.9403,157.12,157.07,2.96]
[1762664185017,3.21,157.11,157.08,2.96]
[1762664185216,3.25447135,157.11,157.08,3.00483803]
[1762664186520,0.04447135,157.11,157.08,8.73633803]
[1762664187025,0.04447135,157.11,157.09,2.96]
[1762664187416,0.04447135,157.11,157.09,8.6911]
[1762664187616,0.04447135,157.11,157.1,2.96]
[1762664195323,3.27447135,157.11,157.09,3.16]
[1762664195929,0.04447135,157.11,157.09,3.16]
[1762664202230,0.04447135,157.11,157.09,8.8911]
[1762664202431,0.04447135,157.11,157.1,3.16]
[1762664204639,8.9585,157.17,157.12,3.16]
[1762664205039,3.23,157.16,157.12,3.16]
[1762664205439,3.23,157.16,157.12,8.89]
[1762664205640,3.27769904,157.16,157.13,3.16]
[1762664207540,0.04769904,157.16,157.13,3.16]
[1762664208040,0.04769904,157.16,157.14,3.16]
[1762664210844,0.04769904,157.16,157.14,8.8892]
[1762664211047,0.04769904,157.16,157.15,3.16]
[1762664212241,5.7273,157.2,157.15,5.7286]
[1762664212445,8.9573,157.2,157.16,3.16]
[1762664213240,8.9573,157.2,157.16,8.8885]
[1762664213539,9.00578883,157.2,157.17,3.16]
[1762664213846,0.04848883,157.2,157.17,3.16]
[1762664214346,3.27848883,157.2,157.17,3.16]
[1762664217643,0.04848883,157.2,157.17,8.8882]
[1762664217843,0.04848883,157.2,157.17,3.16]
[1762664218446,0.04848883,157.2,157.19,2.99]
[1762664219049,0.04848883,157.2,157.16,3.03518158]
[1762664219050,3.23848883,157.2,157.16,3.03518158]
[1762664220152,3.19,157.19,157.17,2.99]
[1762664221753,0.04848883,157.2,157.18,2.98]
[1762664222555,3.19,157.26,157.19,2.98]
[1762664222861,3.19,157.27,157.19,2.98]
[1762664223043,3.19,157.27,157.2,2.98]
[1762664223649,0.04493289,157.25,157.23,2.98]
[1762664228960,3.23493289,157.25,157.23,2.98]
[1762664229146,3.19,157.24,157.22,0.04335256]
[1762664229352,4.89893851,157.23,157.22,0.04335256]
[1762664230150,3.19,157.22,157.18,2.98]
[1762664230357,3.19,157.2,157.18,2.98]
[1762664231358,1.70893851,157.19,157.17,3.02450714]
[1762664231955,4.89893851,157.19,157.17,0.04450714]
[1762664232155,3.19,157.18,157.17,0.04450714]
[1762664243761,5.7285,157.17,157.12,2.98]
[1762664244059,3.19,157.15,157.12,2.98]
[1762664244864,3.23385945,157.15,157.12,3.02899066]
[1762664245066,3.19,157.14,157.12,3.02899066]
[1762664252669,3.13,157.13,157.12,0.04899066]
[1762664262265,0.04385945,157.15,157.12,3.02899066]
[1762664263969,0.04385945,157.15,157.12,8.75899066]
[1762664264272,0.04385945,157.15,157.13,2.98]
[1762664266775,0.04385945,157.15,157.13,8.7096]
[1762664267076,0.04385945,157.15,157.14,3.07]
[1762664271179,3.04,157.22,157.16,3.07]
[1762664271974,3.04,157.21,157.18,3.07]
[1762664272174,3.08112886,157.21,157.18,3.11438004]
[1762664272971,3.08112886,157.21,157.18,8.84218004]
[1762664273171,0.04112886,157.21,157.19,3.07]
[1762664274678,0.04112886,157.21,157.2,3.07]
[1762664280077,3.08112886,157.21,157.18,0.04438004]
[1762664280280,3.04,157.2,157.18,0.04438004]
[1762664281273,8.7672,157.2,157.18,0.04438004]
[1762664281476,3.04,157.19,157.18,0.04438004]
[1762664284984,4.74893851,157.19,157.18,0.04438004]
[1762664285285,3.23,157.2,157.18,3.23438004]
[1762664287584,3.27112886,157.21,157.18,3.23438004]
[1762664291486,0.04112886,157.21,157.18,3.23438004]
[1762664291685,0.04112886,157.21,157.2,3.19]
[1762664293580,3.27112886,157.21,157.18,3.23438004]
[1762664293781,3.27112886,157.21,157.18,0.04438004]
[1762664294989,3.23,157.2,157.18,0.04438004]
[1762664299082,0.04112886,157.21,157.19,3.19]
[1762664299890,3.27112886,157.21,157.19,3.19]
[1762664300090,3.27112886,157.21,157.18,5.77218004]
[1762664300290,3.27112886,157.21,157.18,8.96218004]
[1762664300588,3.27112886,157.21,157.19,3.19]
[1762664302098,3.27112886,157.21,157.18,3.23438004]
[1762664313511,8.99792886,157.21,157.18,3.23438004]
[1762664315812,3.01,157.19,157.18,0.04438004]
[1762664328829,3.01,157.19,157.15,5.7289]
[1762664328830,3.08,157.16,157.12,3.06]
[1762664329331,3.08,157.15,157.12,3.06]
[1762664329629,8.8087,157.16,157.12,3.06]
[1762664329834,3.12132,157.16,157.12,3.10804789]
[1762664331328,3.12132,157.16,157.13,3.06]
[1762664331524,0.04132,157.16,157.13,3.06]
[1762664332126,0.04132,157.16,157.13,8.7896]
[1762664332330,0.04132,157.16,157.14,3.06]
[1762664335938,0.04132,157.16,157.14,8.7893]
[1762664336837,0.04132,157.16,157.15,3.06]
[1762664352655,2.93,157.2,157.16,3.11]
[1762664353557,2.97814767,157.2,157.16,3.15137877]
[1762664353960,2.97814767,157.2,157.16,8.87987877]
[1762664354257,2.93,157.19,157.17,3.11]
[1762664357255,2.93,157.18,157.16,3.15137877]
[1762664357559,8.6576,157.19,157.16,3.15137877]
[1762664357953,2.93,157.19,157.16,3.15137877]
[1762664369171,0.04814767,157.2,157.18,3.11]
[1762664370266,0.04814767,157.2,157.18,8.8378]
[1762664370467,2.97814767,157.2,157.19,3.11]
[1762664370870,2.97814767,157.2,157.17,3.11]
[1762664371570,2.97814767,157.2,157.17,8.8382]
[1762664372467,2.97814767,157.2,157.18,3.05]
[1762664379873,2.97814767,157.2,157.18,8.7778]
[1762664391088,2.97814767,157.2,157.19,2.92]
[1762664397484,2.97814767,157.2,157.17,5.7281]
[1762664397485,2.97814767,157.2,157.17,2.92]
[1762664397678,2.97814767,157.2,157.16,2.96137877]
[1762664398887,2.94,157.19,157.16,2.96137877]
[1762664403395,2.94,157.19,157.16,0.04137877]
[1762664403893,2.94,157.19,157.16,3.19137877]
[1762664404400,0.04814767,157.2,157.16,3.19137877]
[1762664404696,0.04814767,157.2,157.17,3.15]
[1762664405997,0.04814767,157.2,157.17,8.8781]
[1762664406197,0.04814767,157.2,157.18,3.15]
[1762664407199,3.04814767,157.2,157.18,3.15]
[1762664407702,3.0,157.19,157.16,3.19137877]
[1762664408998,3.0,157.18,157.16,3.19137877]
[1762664410087,10.43805691,157.18,157.16,0.04137877]
[1762664410293,3.0,157.17,157.16,0.04137877]
[1762664410897,5.728,157.18,157.16,3.19137877]
[1762664411103,3.0,157.19,157.16,3.19137877]
[1762664412899,8.77554767,157.2,157.16,3.19137877]
[1762664413397,3.0,157.19,157.16,3.19137877]
[1762664414508,0.04814767,157.2,157.16,8.91987877]
[1762664414809,3.04814767,157.2,157.17,3.15]
[1762664423703,3.0,157.19,157.17,3.15]
[1762664424313,3.0,157.19,157.16,3.19137877]
[1762664424708,3.0,157.18,157.16,0.04137877]
[1762664426117,3.0,157.17,157.16,0.04137877]
[1762664428710,5.77554767,157.2,157.16,3.19137877]
[1762664429016,3.0,157.19,157.16,3.19137877]
[1762664429902,3.0,157.18,157.16,3.19137877]
[1762664436319,3.19,157.19,157.16,3.19137877]
[1762664437023,3.19,157.19,157.16,0.04137877]
[1762664437223,3.19,157.19,157.16,2.99137877]
[1762664438721,3.19,157.17,157.16,0.04137877]
[1762664466942,7.73295957,157.17,157.16,0.04137877]
[1762664467241,3.19,157.17,157.16,0.04137877]
[1762664472838,5.728,157.18,157.16,3.28137877]
[1762664473244,8.908,157.18,157.16,3.28137877]